Cogmind - Beta 13 *** ADVENTURER MODE // 2024.04.01 @ 01:18:42 Player: Minty Result: Destroyed by 8R-AWN with 8R-AWN's Boregun Performance ------------- Evolutions (0) 0 Regions Visited (3) 600 Robots Destroyed (42) 210 Value Destroyed (812) 812 Prototype IDs (2) 40 Alien Tech Used (0) 0 Bonus (0) 0 TOTAL SCORE: 1662 Bonus ------- None Cogmind --------- Core Integrity 0/250 Matter 241/300 Energy 170/170 System Corruption 0% Temperature Hot (272) Movement Flying (360) Ox4 Location -10/Exiles Parts ------- > --- POWER (1) -------- Makeshift Power Source > --- PROPULSION (2) --- Flight Unit > --- UTILITY (2) ------ Medium Storage Unit Utility Shielding > --- WEAPON (2) ------- Beamcaster > --- INVENTORY (10) --- Fission Core ECM Suite Peak State ------------ > --- POWER ------------ Makeshift Power Source > --- PROPULSION ------- Flight Unit Flight Unit > --- UTILITY ---------- Medium Storage Unit Utility Shielding > --- WEAPON ----------- Particle Gun Beamcaster > --- INVENTORY -------- ECM Suite [Rating: 15] Favorites ----------- Power Light Ion Engine Engine Light Ion Engine Propulsion Flight Unit Treads Light Treads Leg Aluminum Leg Wheel Wheel Flight Unit Flight Unit Utility Medium Storage Unit Device ECM Suite Storage Medium Storage Unit Protection Utility Shielding Weapon Particle Gun Energy Gun Particle Gun Ballistic Gun Assault Rifle Launcher Mini Grenade Launcher Special Weapon Mining Laser Build | -11 -10 -10 -10 ------- Run | Yrd Mat Min Exi Slots Evolved . | . . . . Power . | . . . . Propulsion . | . . . . Utility . | . . . . Weapon . | . . . . Parts Attached 33 | 9 13 11 . Power 6 | 1 2 3 . Engine 6 | 1 2 3 . Core . | . . . . Reactor . | . . . . Propulsion 10 | 3 3 4 . Treads 2 | . 2 . . Leg 1 | 1 . . . Wheel 2 | 2 . . . Hover . | . . . . Flight 5 | . 1 4 . Utility 8 | 2 4 2 . Device 4 | 1 2 1 . Storage 3 | 1 2 . . Processor . | . . . . Hackware . | . . . . Protection 1 | . . 1 . Artifact . | . . . . Weapon 9 | 3 4 2 . Energy Gun 3 | 1 . 2 . Energy Cannon . | . . . . Ballistic Gun 2 | 1 1 . . Ballistic Cannon . | . . . . Launcher 2 | . 2 . . Special Weapon 2 | 1 1 . . Impact Weapon . | . . . . Slashing Weapon . | . . . . Piercing Weapon . | . . . . Special Melee Weapon . | . . . . Unidentified Prototypes . | . . . . Parts Lost 12 | . 3 7 2 Power 3 | . 2 1 . Propulsion 5 | . . 4 1 Utility 1 | . . 1 . Weapon 3 | . 1 1 1 Highest Loss Streak 5 | . 2 5 2 To Critical Strikes . | . . . . Average Slot Usage (%) 88 | . 91 85 98 Engine 12 | . 11 13 14 Treads 3 | . 10 . . Wheel 2 | . 6 . . Flight 18 | . 6 24 26 Device 11 | . 16 10 . Storage 13 | . 11 14 14 Protection 2 | . . 3 14 Energy Gun 12 | . 1 17 28 Ballistic Gun 3 | . 11 . . Launcher 5 | . 13 . . Naked Turns . | . . . . Heaviest Build 23 | 9 17 23 23 Greatest Support 20 | 20 20 20 8 Greatest Overweight (x) 5 | . 2 5 2 Average Overweight (x) 1 | . . 2 2 Largest Inventory Capacity 10 | 5 10 10 10 Average Capacity 8 | 5 6 10 10 Most Carried 9 | 5 5 9 2 Average Carried 2 | 2 4 2 1 Final Capacity 10 | 5 10 10 10 Final Carried 5 | 2 5 1 2 Class Distribution -------------------- 82% | Mutant 17% | Scavenger-Mutant Dominant Class ---------------- Mutant | -10/Materials Mutant | -10/Mines Scavenger-Mutant | -10/Exiles Resources | -11 -10 -10 -10 ----------- Run | Yrd Mat Min Exi Matter Collected 879 | 348 294 237 . Remotely . | . . . . Salvage Created 957 | 97 547 313 . Parts 67 | 11 36 20 . Haulers Intercepted . | . . . . Recyclers Shooed 2 | . 1 1 . Parts Field Recycled . | . . . . Retrieved Matter . | . . . . Parts Self-Destructed . | . . . . Prevented . | . . . . Kills | -11 -10 -10 -10 ------- Run | Yrd Mat Min Exi Combat Hostiles Destroyed 30 | 1 16 13 . Guns 22 | 1 8 13 . AOE 8 | . 8 . . Classes Destroyed 7 | 3 3 1 . Worker 4 | 1 3 . . Builder 2 | . 1 1 . Tunneler 3 | 2 . 1 . Recycler 1 | . . 1 . Watcher 2 | . 2 . . Swarmer 15 | . 3 12 . Grunt 15 | 1 13 1 . Best Kill Streak 8 | 3 8 3 . Combat Bots Only 5 | 1 5 3 . Max Kills in Single Turn 3 | 1 3 1 . Gunslinging . | . . . . Exploded 2 | . 2 . . Melee . | . . . . Uniques/NPCs Destroyed . | . . . . Combat | -11 -10 -10 -10 -------- Run | Yrd Mat Min Exi Hostile Shots Fired 168 | 2 70 89 7 Missed 49 | . 23 25 1 Damage Taken 1049 | 16 506 444 83 Core 259 | . 58 168 33 Absorbed by Shields . | . . . . Redirected to Shielding 1 | . . 1 . Ignored by Resistances 323 | 4 156 140 23 Core Remaining (%) 100 | 100 . . . Volleys Fired 127 | 9 56 51 11 Largest 2 | 2 2 2 2 Hottest 140 | 120 50 140 140 Shots Fired 165 | 17 66 63 19 Gun 149 | 15 53 62 19 Cannon . | . . . . Launcher 14 | . 13 1 . Special 2 | 2 . . . Kinetic 62 | 9 53 . . Thermal 89 | 8 . 62 19 Explosive 14 | . 13 1 . Electromagnetic . | . . . . Robot Hit Streak 13 | 6 12 13 2 Robot Miss Streak 2 | 1 2 2 2 Penetration Max . | . . . . Secondary Targets 2 | . . 2 . Max Gunslinging Chain 1 | . . 1 . Shots Hit Robots 109 | 7 52 48 2 Core Hits 60 | 5 36 18 1 Critical Kills . | . . . . Critical Parts Destroyed 2 | . 2 . . Critical Strikes 5 | . 2 3 . Burn 3 | . . 3 . Destroy 2 | . 2 . . Melee Attacks . | . . . . Impact . | . . . . Slashing . | . . . . Piercing . | . . . . Sneak Attacks . | . . . . Combat Hostiles . | . . . . Follow-up Attacks . | . . . . Damage Inflicted 2232 | 89 1373 767 3 Guns 1359 | 89 542 725 3 Cannons . | . . . . Explosions 873 | . 831 42 . Melee . | . . . . Ramming . | . . . . Kinetic 588 | 46 542 . . Thermal 771 | 43 . 725 3 Explosive 873 | . 831 42 . Electromagnetic . | . . . . Impact . | . . . . Slashing . | . . . . Piercing . | . . . . Highest Corruption . | . . . . Average Corruption . | . . . . Corruption Purged . | . . . . Corruption Blocked . | . . . . Overload Shots . | . . . . Overflow Damage 2 | . . 2 . Projectiles . | . . . . Explosions 2 | . . 2 . Melee . | . . . . Knockbacks . | . . . . Impact . | . . . . Kinetic . | . . . . Secondary . | . . . . Self-Inflicted Damage 130 | . 100 30 . Shots 5 | . 4 1 . Rammed . | . . . . Targets Rammed . | . . . . Kicked . | . . . . Crushed . | . . . . Highest Temperature 603 | 40 12 603 572 Average Temperature 168 | 16 6 150 291 Received Heat Transfer 294 | 12 264 18 . Effects 21 | . . 10 11 Shutdowns 4 | . . 2 2 Energy Bleed 8 | . . 4 4 Interference 3 | . . 1 2 Matter Decay 2 | . . 1 1 Damage (minor) 1 | . . 1 . Damage (major) 2 | . . . 2 Damage (core) 1 | . . 1 . Siege Activations . | . . . . Robots Corrupted . | . . . . Combat Hostiles . | . . . . Parts Fried . | . . . . Impact Corruptions . | . . . . Robots Melted . | . . . . Combat Hostiles . | . . . . Parts Melted 7 | . . 7 . Heat Transferred 2042 | 100 . 1924 18 Parts Sabotaged . | . . . . Parts Stolen . | . . . . Parts Stripped . | . . . . Power Chain Reactions . | . . . . Alert | -11 -10 -10 -10 ------- Run | Yrd Mat Min Exi Peak Influence 286 | 35 286 188 . Initial 46 | . 19 46 . Average 91 | 11 173 54 . Maximum Alert Level 1 | . 1 . . Low Security (%) 85 | 100 56 100 . Level 1 14 | . 43 . . Level 2 . | . . . . Level 3 . | . . . . Level 4 . | . . . . Level 5 . | . . . . High Security . | . . . . Max Security . | . . . . Squads Dispatched 4 | . 4 . . Investigation 4 | . 4 . . Extermination . | . . . . Reinforcement . | . . . . Assault . | . . . . Garrison . | . . . . Intercept . | . . . . Searches Triggered . | . . . . Construction Impeded . | . . . . Haulers Reinforced . | . . . . Active Scanning Responses . | . . . . Cargo Convoy Interrupts . | . . . . Stealth | -11 -10 -10 -10 --------- Run | Yrd Mat Min Exi Distress Signals 2 | . 2 . . Communications Jammed . | . . . . Distress Signals . | . . . . Times Spotted 44 | 1 19 16 8 Peak Tracking Total 9 | 1 5 3 9 Tactical Retreats 3 | . . 3 . Traps | -11 -10 -10 -10 ------- Run | Yrd Mat Min Exi Traps Triggered 2 | . 2 . . Indirectly . | . . . . Trap Hack Attempts . | . . . . Triggered . | . . . . Disarmed . | . . . . Reprogrammed . | . . . . Reused . | . . . . Traps Extracted . | . . . . Installed . | . . . . Triggered . | . . . . Machines | -11 -10 -10 -10 ---------- Run | Yrd Mat Min Exi Machines Disabled 8 | . 3 3 2 Max in Single Turn 2 | . 1 1 2 Machines Repaired . | . . . . Machines Dismantled . | . . . . Machines Sabotaged . | . . . . Overloaded Fab Kills . | . . . . Hacking | -11 -10 -10 -10 --------- Run | Yrd Mat Min Exi Machines Accessed 5 | . 5 . . Terminals 4 | . 4 . . Fabricators . | . . . . Repair Stations 1 | . 1 . . Recycling Units . | . . . . Scanalyzers . | . . . . Garrison Access . | . . . . Total Hacks 16 | . 16 . . Successful 12 | . 12 . . Failed 4 | . 4 . . Catastrophic . | . . . . Database Lockouts . | . . . . Manual . | . . . . Terminals 15 | . 15 . . Fabricators . | . . . . Repair Stations 1 | . 1 . . Recycling Units . | . . . . Scanalyzers . | . . . . Garrison Access . | . . . . Terminal Hacks 11 | . 11 . . Record 4 | . 4 . . Prototype ID Bank 1 | . 1 . . Alert Level 3 | . 3 . . Unreport Threat 1 | . 1 . . Hauler Manifests 1 | . 1 . . Zone Layout 1 | . 1 . . Fabricator Hacks . | . . . . Repair Station Hacks 1 | . 1 . . Refit 1 | . 1 . . Recycling Unit Hacks . | . . . . Scanalyzer . | . . . . Garrison Access Hacks . | . . . . Unauthorized Hacks . | . . . . Terminals . | . . . . Fabricators . | . . . . Repair Stations . | . . . . Recycling Units . | . . . . Scanalyzers . | . . . . Garrison Access . | . . . . Data Cores Recovered . | . . . . Used . | . . . . Hacking Detections 4 | . 4 . . Full Trace Events 4 | . 4 . . Feedback Events . | . . . . Feedback Blocked . | . . . . Robot Schematics Acquired . | . . . . Robots Built . | . . . . Authchips . | . . . . Time . | . . . . Total Robot Build Rating . | . . . . Part Schematics Acquired . | . . . . Parts Built . | . . . . Authchips . | . . . . Time . | . . . . Total Part Build Rating . | . . . . Parts Repaired . | . . . . Time . | . . . . Parts Recycled . | . . . . Recycled Matter . | . . . . Retrieved Matter . | . . . . Retrieved Components . | . . . . Parts Scanalyzed . | . . . . Part Schematics Acquired . | . . . . Parts Damaged . | . . . . Bothacking | -11 -10 -10 -10 ------------ Run | Yrd Mat Min Exi Used RIF Installer . | . . . . Robots Hacked . | . . . . Non-combat . | . . . . Combat . | . . . . Robot Hacks Applied . | . . . . Relay Couplers Released . | . . . . Fabnet Peak Effective % . | . . . . Robots Rewired . | . . . . Allies Hacked . | . . . . Hacks Repelled . | . . . . Allies | -11 -10 -10 -10 -------- Run | Yrd Mat Min Exi Total Allies 2 | . . 2 . Largest Group 2 | . . 2 . Highest-Rated Group 43 | . . 43 . Highest-Rated Ally 31 | . . 31 . Total Orders . | . . . . Ally Attacks 1 | . . 1 . Total Damage . | . . . . Kills . | . . . . Allies Corrupted . | . . . . Allies Melted . | . . . . Intel | -11 -10 -10 -10 ------- Run | Yrd Mat Min Exi Robot Analysis Total . | . . . . Derelict Logs Recovered . | . . . . Drone Launches . | . . . . Drone Recoveries . | . . . . Exploration | -11 -10 -10 -10 ------------- Run | Yrd Mat Min Exi Turns Passed 2093 | 133 654 1194 112 Spaces Moved 1028 | 108 380 499 41 Core 48 | 33 . 15 . Treads 239 | . 238 1 . Legs . | . . . . Wheels 215 | 75 140 . . Hover . | . . . . Flight 526 | . 2 483 41 Fastest Speed 50 | 50 80 160 197 Average Speed 166 | 70 130 211 197 Slowest Speed 440 | 80 200 440 197 Overloaded Moves . | . . . . Propulsion Burnouts . | . . . . Robots Hopped . | . . . . Cave-ins Triggered . | . . . . Exploration Rate (%) 44 | 7 69 90 11 Regions Visited 3 Branch Regions 2 Pre-discovered Areas . | . . . . Known Exits Taken . | . . . . Unknown Exits Taken 3 | 1 1 1 . Scrap Searched 1 | . . 1 . Spaces Dug . | . . . . Terrain Destroyed 59 | . 50 9 . Melee . | . . . . Projectile . | . . . . AOE 59 | . 50 9 . Terrain Rammed . | . . . . Walls Destroyed . | . . . . Machines Disabled . | . . . . Actions | -11 -10 -10 -10 --------- Run | Yrd Mat Min Exi Total 1246 | 144 474 575 53 Wait 2 | . . 2 . Move 1025 | 107 379 498 41 Hop . | . . . . Pick Up 37 | 14 14 8 1 Fast Attach . | . . . . Attach 20 | 7 5 8 . Detach 1 | . 1 . . Swap 13 | 2 8 3 . Drop 21 | 5 11 5 . Fire 127 | 9 56 51 11 Melee . | . . . . Ram . | . . . . Kick . | . . . . Crush . | . . . . Escape Stasis . | . . . . Rewire . | . . . . Trap . | . . . . Miscellaneous . | . . . . Route ------- -11/Scrapyard -10/Materials (discovered 5 exits: [*Mat x3] / [*Min x2]) -10/Mines (discovered 3 exits: [*Mat x2] / [*Exi]) -10/Exiles (discovered 1 exit: [*Min]) History --------- Turn | Location | Event 2 | -11/Scrapyard | Met Revision 17 83 | -11/Scrapyard | Discovered new exit (range 8) 134 | -11/Scrapyard | Entered Materials 264 | -10/Materials | Discovered new exit (range 10) 303 | -10/Materials | Build established: Mutant 313 | -10/Materials | Discovered new exit (range 13) 467 | -10/Materials | Discovered new exit (range 15) 515 | -10/Materials | Discovered new exit (range 14) 694 | -10/Materials | Discovered new exit (range 11) 788 | -10/Materials | Entered Mines 807 | -10/Mines | Assembled infested the area 844 | -10/Mines | Core integrity fell below 50% 874 | -10/Mines | Lost 5 parts (1p2n1u1w) 911 | -10/Mines | Discovered new exit (range 15) 1417 | -10/Mines | Discovered new exit (range 10) 1887 | -10/Mines | Core integrity fell below 20% 1972 | -10/Mines | Discovered new exit (range 5) 1982 | -10/Mines | Entered Exiles 2023 | -10/Exiles | Build established: Scavenger-Mutant 2035 | -10/Exiles | Discovered new exit (range 15) 2073 | -10/Exiles | Met 8R-AWN 2089 | -10/Exiles | Attacked by the Exiles 2094 | -10/Exiles | Destroyed by 8R-AWN with 8R-AWN's Boregun Last Messages --------------- 8R-AWN: Oh you look... interesting. The Exiles will probably want to check you out. Keep your grabby things to yourself, though. I've got my sensors on you. 02088_ Machine disabled. 02089_ EXILES: Hostile robot within lab perimeter. Defensive protocols time, folks! 02089_ Penetrated by HV Slug. 02089_ HV Slug penetrates Wall. 02089_ Penetrated by HV Slug. 02089_ Flight Unit destroyed. 02089_ HV Slug penetrates Wall. 02091_ HV Slug penetrates Machine. 02091_ Machine disabled. 02091_ HV Slug penetrates Machine. 02091_ Penetrated by HV Slug. 02091_ HV Slug penetrates Wall. 02092_ Particle Gun destroyed. 02094_ Penetrated by HV Slug. [Achievement: First Step to Greatness] Map ----- +----------------------------------------------------+ | ?????????????????????????????????????????????????? | | ?????????????????????????????????????????????????? | | ?????????????????????????????????????????????????? | | ?????????????????????????????????????????????????? | | ?????????????????????????????????????????????????? | | ?????????????????????????????????????????????????? | | ?????????????????????????????????????????????????? | | ?????????????????????????????????????????????????? | | ?????????????????????????????????????????????????? | | ?????????????????????????????????????????????????? | | ?????????????????????????????????????????????????? | | ?????????????????????????????????????????????????? | | ??????????????????????????????????????????????? ? | | ?????????????????????????????????????????????? < | | ?????????????????????????????????????????????? | | ?????????????????????????????????????????????? | | ?????????????????????????????????????????????# # | | ???????????????????????????????????????????## # | | ???????????????????????????????????????????# | | ???????????????????????#####???????????????# | | ??????????????????????## #??????????????## | | ??????????????????????#" g #?????????????## #? | | ?????????????????????## ##????????????# #? | | ???????????????????### ###????????### #?? | | ???????????????????# ########## #?? | | ???????????????????# @ #""""## #??? | | ??????????????????# * ##?? | | ????????????? ## * #?? | | ??????????? #?## ##? | | ??????????? a a "??#"""""#### ## | | ???????????? a#"" ???#######??#### | | ???????????? aa ?###????????????????##### | | ????????????a a??????????????????????????### | | ????????????? ?????????????????????????????### | | ?????????????????????????????????????????????### | | ??????????????????????????????????????????????#" | | ??????????????????????????????????????????????#### | | ?????????????????????????????????????????????????# | | ?????????????????????????????????????????????????# | | ?????????????????????????????????????????????????? | | ?????????????????????????????????????????????????? | | ?????????????????????????????????????????????????? | | ?????????????????????????????????????????????????? | | ?????????????????????????????????????????????????? | | ?????????????????????????????????????????????????? | | ?????????????????????????????????????????????????? | | ?????????????????????????????????????????????????? | | ?????????????????????????????????????????????????? | | ?????????????????????????????????????????????????? | | ?????????????????????????????????????????????????? | +----------------------------------------------------+ Best States ------------- Heat Dissipation 25 Energy Generation 15 Energy Capacity 170 Matter Stores 337 Matter Capacity 500 Sight Range 16 Terrain Scan Density 10 ECM Strength 1 Resistance: KI 20 Resistance: TH 20 Resistance: EX 20 Resistance: EM 20 Resistance: I 20 Resistance: S 20 Resistance: P 20 Utility Shielding 33 Evasion (%) 50 Recoil Reduction 1 Offensive Hacking 10 Item Schematics ----------------- None Robot Schematics ------------------ None Fabricated ------------ Nothing Alien Tech Used ----------------- None Achievements -------------- Crack Shot Everything Is Under Control First Step to Greatness Let's See Who's Tougher One Hack Too Far Shopping List Challenges ------------ None Game ------ Seed EtherialGodInterrupter Manual? 0 Play Time 00:31:54 Cumulative 0.5 hours Start 2024.03.31 @ 22:26:50 End 2024.04.01 @ 01:18:42 Sessions 5 Manual Loads 0 Difficulty Adventurer Special Mode None Game No. 1 Rogue 0 Adventurer 1 Explorer 0 Win Type - Total 0 Types 0/0/0/0/0/0/0/0/0 Lore% 0 Gallery% 2 Achievement% 2 Wizard Run 0 Options --------- Layout 1 ASCII 0 Keyboard 0 Movement Mouse Keybinds 0 Fullscreen 1 Font 24/Smallcaps Map View 50x35 Zoom Use 0% Tactical HUD 1 Map Filters NONE Filters NONE Steam 1 RUN: 0b14b020-c7b0-41f8-9a58-0177d3bbc460